Workbook

Sheet Kezdés
A2: Ismerkedés a képletekkel
A3: Mindössze néhány lépésben megtanulhatja, hogy hogyan hozhat létre képleteket és függvényeket az Excelben, a világ leghatékonyabb táblázatkezelő appjában.
A4: A CTRL+HOME billentyűkombinációval léphet a lap tetejére. A CTRL+PAGE DOWN billentyűkombinációt lenyomva elindíthatja a bemutatót.

Sheet Alapok
A1: Alapok: matematikai műveletek az Excellel
A2: Az Excelben beépített függvény használata nélkül is végezhet összeadási, kivonási, szorzási és osztási műveleteket. Ehhez csupán a következő műveleti jeleket kell használnia: +, -, *, /. Minden képlet egy egyenlőségjellel (=) kezdődik. | C2: Használandó számok: | E2: Művelet: | F2: Képletek: | G2: Válaszok:
A3: Összeadáshoz jelölje ki az F3 cellát, írja be a =C3+C4 képletet, majd nyomja le az Enter billentyűt. | C3: 1 | E3: Összeadás (+) | G3: =C3+C4 -> 3
A4: Kivonáshoz jelölje ki az F4 cellát, írja be a =C3-C4 képletet, majd nyomja le az Enter billentyűt. | C4: 2 | E4: Kivonás (-) | G4: =C3-C4 -> -1
A5: Szorzáshoz jelölje ki az F5 cellát, írja be a =C3*C4 képletet, majd nyomja le az Enter billentyűt. | E5: Szorzás (*) | G5: =C3*C4 -> 2
A6: Osztáshoz jelölje ki az F6 cellát, írja be a =C3/C4 képletet, majd nyomja le az Enter billentyűt. | E6: Osztás (/) | G6: =C3/C4 -> 0.5
A7: Próbálja ki: Ha a C3 és a C4 cellában módosítja a számokat, láthatja, ahogyan a képlet eredményei automatikusan megváltoznak. | E7: Hatványra emelés (^) | G7: =C3^C4 -> 1
A8: KIEGÉSZÍTŐ TANANYAG: Hatványra is emelhet értékeket, a karát (^) szimbólum használatával, például: =A1^A2. A beírásához nyomja le a Shift+6 billentyűparancsot. Az F7 cellába írja be a következőt: =C3^C4.
A9: Haladjon lefelé, ha kíváncsi a részletekre
A10: Következő lépés
A11: További információ a képletekről, cellákról és tartományokról
A12: Az Excel sorokba és oszlopokba csoportosított, egyéni cellákból áll. A sorokat számok, az oszlopokat pedig betűk azonosítják. A programban több mint 1 millió sor és több mint 16 000 oszlop található, Ön pedig bármelyikükben elhelyezhet képleteket.
A13: A képletek cellahivatkozásokat, cellahivatkozás-tartományokat, operátorokat és állandókat tartalmazhatnak. A következők mind egy-egy példa a képletekre: =A1+B1 =10+20 =SZUM(A1:A10)
A14: Látható, hogy a fenti harmadik példában a SZUM függvényt használtuk. A függvények olyan előre elkészített parancsok, amelyek egy vagy több értéket alapul véve elvégeznek valamilyen számítást, és visszaadják annak eredményét. A SZUM függvény például összegzi az Ön által megadott cellahivatkozásokat vagy cellatartományokat. Ebben a példában az A1–A10 cellák összegzését végzi el. Az Excelben 400-nál is több függvény található, amelyeket a Képletek lapon fedezhet fel.
A15: A függvényt tartalmazó képletek egyenlőségjellel kezdődnek, amelyet a függvény neve követ a hozzá tartozó, zárójelek között szereplő argumentumokkal (a függvény által a számításhoz használt értékekkel).
A16: A képletek az Enter billentyű lenyomásával erősíthetők meg. Amint így tesz, megtörténik a képlet kiszámítása, és megjelenik az eredmény a cellában. Magát a képletet úgy tekintheti meg, hogy ránéz a képletsávra a menüszalag alatt, vagy az F2 billentyűt lenyomva Szerkesztés módba lép, amelyben láthatóvá válik a képlet a cellában. Nyomja le ismét az Enter billentyűt a képlet véglegesítéséhez és az eredmény kiszámításához.
A17: Néhány magyarázat a képletekről
A18: A =10+20 képletben a 10 és a 20 az állandók, a + jel pedig az operátor.
A19: A =SZUM(A1:A10) képletben a SZUM a függvény neve, a zárójelek között a képlet argumentumai szerepelnek, az A1:A10 pedig a függvény cellahivatkozása.
A20: A =SZUM(A1:A10;C1:C10) képletben a SZUM a függvény neve, a zárójelek között a képlet argumentumai szerepelnek, az A1:A10;C1:C10 pedig a függvény pontosvesszővel elválasztott cellahivatkozásai.
A21: JÓ TUDNI: Az állandók a cellákba vagy képletekbe beírt értékek. Mivel a =10+20 eredménye megegyezhet az =A1+B1 eredményével, az állandók használata nem jó megoldás. Miért? Mert az állandó nehezen látható anélkül, hogy kijelölné a cellát, és megkeresné azt. Emiatt nehézkes lehet a későbbi módosítása. Sokkal egyszerűbb, ha az állandókat cellákba helyezi, ahol azok könnyedén módosíthatók, és egyszerűen lehet rájuk hivatkozni a képletekben. Például: Jelölje ki alább a 12 értéket tartalmazó sárga cellát. Láthatja, hogy a SZUM függvényt használtuk egy cellatartománnyal. A „4” vagy a „8” értéket nem közvetlenül írtuk be a képletbe.
A22: Előző
A23: Következő
A24: További információ a weben
A25: Az Excel használata számológépként
A26: A képletek áttekintése az Excelben
A27: Az Excel függvényeinek kategória szerinti listája
A28: Az Excel függvényeinek betűrendes listája
A29: Ingyenes online Excel-képzés
J40: Értékek
J41: 4
J42: 8
J43: =SUM(J41:J42) -> 12

Sheet Bevezetés a függvényhasználatba
A1: Bevezetés a függvények használatába
A2: A függvényekkel számos művelet végrehajtható: többek között matematikai műveletek, értékek keresése vagy akár dátumok és időpontok kiszámítása is elvégezhető velük. Most bemutatunk néhány módszert arra, hogy hogyan adhat össze értékeket a SZUM függvénnyel. | C2: Gyümölcs | D2: Összeg | F2: Húsáru | G2: Összeg
A3: A gyümölcsökhöz tartozó Mennyiség oszlopban (a D7 cellába) írja be a =SZUM(D3:D6) képletet, vagy írja be a =SZUM( karakterláncot, jelölje ki a kívánt tartományt az egérrel, majd nyomja le az Enter billentyűt. Ezzel összegzi a D3, a D4, a D5 és a D6 cellában lévő értékeket. A helyes válasz a 170. | C3: Alma | D3: 50 | F3: Marha | G3: 50
A4: Most próbálja ki az AutoSzum funkciót. Jelölje ki a Húsáru oszlop alatti cellát (a G7 cellát), és válassza a Képletek > AutoSzum > SZUM lehetőséget. Láthatja, ahogyan az Excel automatikusan beírja Önnek a képletet. Nyomja le az Enter billentyűt a megerősítéshez. Az AutoSzum funkció az összes leggyakoribb függvényt tartalmazza. | C4: Narancs | D4: 20 | F4: Csirke | G4: 30
A5: Íme egy hasznos billentyűparancs. Jelölje ki a D15 cellát, és nyomja le az Alt = billentyűparancsot, majd az Enter billentyűt. Ezzel automatikusan beírja a SZUM függvényt. | C5: Banán | D5: 60 | F5: Sertés | G5: 10
A6: Haladjon lefelé, ha kíváncsi a részletekre | C6: Citrom | D6: 40 | F6: Hal | G6: 50
A7: KIEGÉSZÍTŐ TANANYAG Próbálja ki a DARAB függvényt a már kipróbált módszerek valamelyikével. A DARAB függvénnyel megállapítható, hogy hány cella szerepel egy számokat tartalmazó tartományban. | C7: SZUM > | D7: =SUM(D3:D6) -> 170 | F7: SZUM >
A8: Következő lépés
A9: További információ a függvényekről | C9: Tétel | D9: Összeg | F9: Tétel | G9: Összeg
A10: Lépjen a Képletek lapra, és tallózzon a Függvénytár a különböző, kategóriák (például Szöveg, Dátum és idő stb.) szerint felsorolt függvények között. A Függvény beszúrása funkció lehetővé teszi, hogy név alapján keressen a függvények között, és elindítson egy képletvarázslót, amely segíthet a képlet létrehozásában. Amikor elkezdi beírni egy függvény nevét, az = beírása után az Excel elindítja az Intellisense funkciót, amely megjeleníti az Ön által beírt betűvel kezdődő összes függvényt. Amikor megtalálja a kívánt függvényt, nyomja le a Tab billentyűt. Ekkor az Excel automatikusan beírja a függvény nevét, és a nyitó zárójelet is beírja Ön helyett. Ezenkívül az opcionális és a kötelező argumentumokat is megjeleníti. Most vessünk egy pillantást néhány függvény felépítésére. A SZUM függvény szerkezete az alábbihoz hasonló: | C10: Kenyér | D10: 50 | F10: Kenyér | G10: 50
A11: Ha a SZUM függvény beszélni tudna, a következőt mondaná: a D35–D38 cellák értékeinek, valamint a H oszlop értékeinek összegzését adja vissza. A SZUM a függvény neve, a D35:D38 az első tartományargumentum, amely majdnem mindig kötelező, a H:H pedig a második tartományargumentum. Utóbbi kettő pontosvesszővel van egymástól elválasztva. Most próbáljon ki egy olyan képletet, amely nem használ egy argumentumot sem. | C11: Fánk | D11: 100 | F11: Fánk | G11: 100
A12: A MA függvény a mai dátumot adja vissza. A dátum automatikusan frissülni fog, amikor az Excel újraszámítja a képletet. | C12: Sütemény | D12: 40 | F12: Sütemény | G12: 40
A13: VESSEN ERRE EGY PILLANTÁST Jelölje ki ezeket a cellákat. Ezután az Excel jobb alsó sarkában keresse meg a Összeg: 170 feliratot az alsó sávon. Ez a sáv az úgynevezett állapotsor, ahol szintén gyorsan megtalálhatja egy kijelölt cella vagy tartomány összegét és más adatait. | C13: Torta | D13: 50 | F13: Torta | G13: 50
A14: FONTOS RÉSZLET Kattintson duplán erre a cellára. A képlet végén szerepel a 100 érték. Bár szerepeltethet számokat ilyen formában a képletekben, ezt csak legvégső esetben tegye. Az ilyen számokat állandóknak nevezzük, és könnyű róluk megfeledkezni. Helyette inkább hivatkozzon egy másik cellára, például az F51-re. Ha így tesz, feltehetően nem fogja szem elől téveszteni. | C14: Pite | D14: 20 | F14: Pite | G14: 20
A15: További információ a weben | C15: SZUM > | F15: DARAB >
A16: Minden a SZUM függvényről
A17: Számok összeadása az AutoSzum funkcióval
A18: Minden a DARAB függvényről
A19: Ingyenes online Excel-képzés
A20: Vissza a lap tetejére
A21: Következő lépés
C34: Gyümölcs | D34: Összeg
C35: Alma | D35: 50
C36: Narancs | D36: 20
C37: Banán | D37: 60
C38: Citrom | D38: 40
C39: SZUM > | D39: =SUM(D35:D38) -> 170
C44: Tétel | D44: Mennyiség
C45: Autó | D45: 20
C46: Teherautó | D46: 10
C47: Kerékpár | D47: 10
C48: Korcsolya | D48: 40
D50: Összeg: | F50: További érték | G50: Új összeg
D51: =SUM(D45:D48,100) -> 180 | F51: 100 | G51: =SUM(D45:D48,F51) -> 180

Sheet ÁTLAG
A1: Az ÁTLAG függvény
A2: Az ÁTLAG függvénnyel kiszámíthatja az egy cellatartományban szereplő számok átlagát. | C2: Gyümölcs | D2: Mennyiség | F2: Húsáru | G2: Mennyiség
A3: Jelölje ki a D7 cellát, majd az AutoSzum használatával vegyen fel egy ÁTLAG függvényt. | C3: Alma | D3: 50 | F3: Marha | G3: 50
A4: Most jelölje ki a G7 cellát, és írjon be egy ÁTLAG függvényt a következőképpen: =ÁTLAG(G3:G6). | C4: Narancs | D4: 20 | F4: Csirke | G4: 30
A5: A D15 cellában használhatja az AutoSzum funkciót, vagy beírhat egy másik ÁTLAG függvényt. | C5: Banán | D5: 60 | F5: Sertés | G5: 10
A6: VESSEN ERRE EGY PILLANTÁST Ha kijelöl egy számtartományt, az állapotsoron azonnal láthatja a benne szereplő számok átlagát. | C6: Citrom | D6: 40 | F6: Hal | G6: 50
A7: Az előző lap aktiválása | C7: ÁTLAG > | F7: ÁTLAG >
A8: Továbblépés a következő lapra
A9: KIEGÉSZÍTŐ TANANYAG Itt kipróbálhatja a MEDIÁN vagy a MÓDUSZ üggvény használatát. A MEDIÁN függvénnyel az adatkészlet középértéke, a MÓD függvénnyel pedig az adatkészletben leggyakrabban előforduló érték állapítható meg. | C9: Tétel | D9: Mennyiség | F9: Tétel | G9: Mennyiség
A10: Hivatkozások a weben található további információkra | C10: Kenyér | D10: 50 | F10: Kenyér | G10: 50
A11: További tudnivalók internetes forrásokból az ÁTLAG függvényről | C11: Fánk | D11: 100 | F11: Fánk | G11: 100
A12: További tudnivalók internetes forrásokból a MEDIÁN függvényről | C12: Sütemény | D12: 40 | F12: Sütemény | G12: 40
A13: További tudnivalók internetes forrásokból a MÓDUSZ függvényről | C13: Torta | D13: 50 | F13: Torta | G13: 50
A14: További tudnivalók internetes forrásokból ingyenes Excel-képzésekről | C14: Pite | D14: 20 | F14: Pite | G14: 20
C15: ÁTLAG >

Sheet MIN és MAX
A1: A MIN és a MAX függvény
A2: A MIN függvénnyel megállapíthatja, hogy melyik a legkisebb szám egy cellatartományban. | C2: Gyümölcs | D2: Mennyiség | F2: Húsáru | G2: Mennyiség
A3: A MAX függvénnyel megállapíthatja, hogy melyik a legnagyobb szám egy cellatartományban. | C3: Alma | D3: 50 | F3: Marha | G3: 50
A4: Jelölje a D7 cellát, majd az AutoSzum varázslóval vegyen fel egy MIN függvényt. | C4: Narancs | D4: 20 | F4: Csirke | G4: 30
A5: Most jelölje ki a G7 cellát, és írjon be egy MAX függvényt a következőképpen: =MAX(G3:G6). | C5: Banán | D5: 60 | F5: Sertés | G5: 10
A6: A D15 cellában használhatja az AutoSzum varázslót, vagy beírással megadhat egy MIN vagy MAX függvényt. | C6: Citrom | D6: 40 | F6: Hal | G6: 50
A7: További információ a weben | C7: MIN > | F7: MAX >
A8: Minden a MIN függvényről
A9: Minden a MAX függvényről | C9: Tétel | D9: Mennyiség | F9: Tétel | G9: Mennyiség
A10: Ingyenes online Excel-képzés | C10: Kenyér | D10: 50 | F10: Kenyér | G10: 50
A11: JÓ TUDNI A MIN vagy a MAX függvényt több tartománnyal vagy értékkel használva megjelenítheti az értékek közül a nagyobbat vagy a kisebbet, például =MIN(A1:A10;B1:B10) vagy =MAX(A1:A10;B1), ahol a B1 cella egy küszöbértéket tartalmaz, amely lehet például 10. Ebben az esetben a képlet soha nem ad vissza 10-nél kisebb eredményt. | C11: Fánk | D11: 100 | F11: Fánk | G11: 100
C12: Sütemény | D12: 40 | F12: Sütemény | G12: 40
C13: Torta | D13: 50 | F13: Torta | G13: 50
C14: Pite | D14: 20 | F14: Pite | G14: 20
C15: MIN vagy MAX > | G15: =MIN(G10:G14,10) -> 10

Sheet Dátum és idő
A1: Dátum típusú függvények
A2: Az Excel képes megjeleníteni az aktuális dátumot, a számítógép területi beállításai alapján. Dátumok hozzáadására és kivonására is van lehetőség.
A3: Próbálja ki a MA függvényt, amely a mai dátumot adja vissza. Ezek élő, illetve maguktól frissülő függvények, így amikor Ön holnap megnyitja a munkafüzetet, már a holnapi dátum fog szerepelni bennük. A D6 cellába írja be a következőt: =MA().
A4: Dátumok kivonása – Ha beírja a következő születésnapja dátumát a D7 cellába éééé.hh.nn formátumban, az Excel a =D7-D6 használatával a D8 cellában megjeleníti, hogy hány nap van hátra a nagy napig.
A5: Dátumok összeadása – Tegyük fel, hogy tudni szeretné, hogy mikor esedékes egy számla, vagy mikor kell visszavinnie egy könyvet a könyvtárba. Ennek kiderítéséhez hozzá kell adnia a kívánt napok számát egy dátumhoz. A D10 cellában adjon meg egy véletlenszerű számot a napok számaként. A D11 cellába felvettük a =D6+D10 képletet, amely kiszámítja, hogy hány nap van hátra a határidőig a mai naptól számolva. | C5: Dátum típusú függvények
A6: JÓ TUDNI Az Excel a dátumokat és az időpontokat az 1900. január 1-től eltelt napok száma alapján tárolja. Az időpontokat egy nap törtrészeiként tárolja, amelyhez a perceket veszi alapul. Így a 2017.01.01. 12:30 időpont tárolása valójában a következőként történik: 42736.5208. Ha az idő vagy a dátum ehhez hasonló számként jelenik meg, a Ctrl+1 billentyűparancsot lenyomva, majd a Szám lehetőséget választva megadhatja a kívánt dátum- vagy időformátumot. | C6: Mai dátum: | F6: =IF(D6=TODAY(),"Sikerült!","") -> 
A7: FONTOS RÉSZLET Ha azt szeretné, hogy az Excel ne jelenítsen meg negatív számot, mivel még nem adta meg a születésnapját, használhat egy HA utasítást a következőképpen: =HA(D7="";"";D7-D6), amely ezt jelenti: „HA D7 semmivel egyenlő, ne jelenjen meg semmi, ellenkező esetben a D7 mínusz D6 eredménye legyen látható". | C7: Az Ön születésnapja:
A8: Idő típusú függvények | C8: A születésnapig hátralévő napok száma: | D8: =D7-D6 -> 0
A9: Az Excel képes megjeleníteni az aktuális időt, a számítógép területi beállításai alapján. Időpontok hozzáadására és kivonására is van lehetőség. Előfordulhat például, hogy nyomon kell követnie, hogy egy alkalmazott hány órát dolgozott az egyes heteken, és ki kell számítania az illető fizetését és túlóradíját.
A10: A D28 cellába írja be a =MOST() képletet, amivel megkapja az aktuális időt. Ez minden alkalommal frissülni fog, amikor az Excel kiszámítja a képletet. Ha meg kell változtatnia az időformátumot, nyomja le a Ctrl+1 billentyűparancsot, válassza a Szám > Idő lehetőséget, és válassza ki a kívánt formátumot. | C10: Türelmi időszak napjai:
A11: Időpontok közötti órák számának összeadása – A D36 cellába beírtuk a =((D35-D32)-(D34-D33))*24 képletet, amely kiszámítja valakinek a kezdési és a befejezési időpontját, majd kivonja az ebéddel töltött időt. A képlet végén szereplő *24 az Excel által a nap törtrészeként látott értéket átalakítja órákká. A cellát Önnek azonban számként kell formáznia. Ehhez válassza a Kezdőlap > Formátum > Cellák (Ctrl+1) > Szám > Szám lehetőséget, és adja meg a 2 értéket a Tizedesjegyek legördülő listában. | C11: Számla esedékessége: | D11: =D6+D10 -> 00:00:00
A12: Ha ez a képlet beszélni tudna, ezt mondaná: „Vegyük alapul a Befejezés értékét, és vonjuk ki azt a Kezdés értékéből, majd vonjuk ki az Ebéd kezdete/vége időpontjaiból, majd az eredményt 24-gyel megszorozva alakítsuk át az Excel törtként megadott időpontját órákra”, azaz: =((Befejezés - Kezdés)-(Ebéd vége - Ebéd kezdete))*24.
A13: Előző
A14: Következő
A15: További információ a weben
A16: Minden a MA függvényről
A17: Minden a MOST függvényről
A18: Minden a DÁTUM függvényről
A19: Ingyenes online Excel-képzés
C27: Idő típusú függvények
C28: Aktuális idő:
C31: Munkaórák száma naponta
C32: Kezdés: | D32: 08:00:00
C33: Ebéd kezdete: | D33: 12:00:00
C34: Ebéd vége: | D34: 13:00:00
C35: Befejezés: | D35: 17:00:00
C36: Munkaórák összesen: | D36: =((D35-D32)-(D34-D33))*24 -> 8
C45: Statikus dátum és idő
C46: Dátum: | D46: 2017-09-27
C47: Időpont: | D47: 08:52:00

Sheet Szöveg és számok összefűzése
A1: Különböző cellákból származó szövegek összekapcsolása
A2: Az Excelben sokszor lehet szükség arra, hogy különböző cellákban található szövegeket kapcsoljon össze. A példában az a nagyon gyakori helyzet szerepel, amelyben vezeték- és utóneveket kell összekapcsolnia Vezetéknév, Utónév formában, illetve teljes névként. Szerencsére az Excelben mindez lehetséges az és (&) jel használatával, amelyet a AltGr+& billentyűparancsot lenyomva írhat be. | C2: Utónév | D2: Vezetéknév | E2: Vezetéknév, Utónév | F2: Teljes név
A3: A vezeték- és utónevek összekapcsolásához írja be az E3 cellába a következőt: =D3&C3. | C3: Barbara | D3: Kovács | E3: =D3&", "&C3 -> Kovács, Barbara | F3: =C3&" "&D3 -> Barbara Kovács
A4: Az eredményül kapott KovácsBarbara karakterlánc azonban nem tűnik teljesen helyesnek. Fel kell venni még egy vesszőt és egy szóközt. Ehhez idézőjelek használatával létrehozunk egy új szöveges karakterláncot. Ez alkalommal írja be a következőt: =D3&", "&C3. A képlet &", "& része gondoskodik a cellákban lévő szöveg, valamint egy vessző és egy szóköz összekapcsolásáról. | C4: Bálint | D4: Balla
A5: A teljes név létrehozásához össze kell kapcsolni a vezeték- és az utónevet, egy vessző nélküli szóköz használatával. Az F3 cellába írja be a következőt: =C3&" "&D3. | C5: József | D5: Mészáros
A6: Haladjon lefelé, ha kíváncsi a részletekre | C6: Margit | D6: Takács
A7: Következő | C7: Sándor | D7: Magyar
A8: Szöveg és számok együttes használata | C8: Mihály | D8: Fodor
A9: Most a & szimbólummal szöveg és szöveg helyett szöveg és számok összekapcsolását fogjuk elvégezni. Vessen egy pillantást a C28:D29 cellatartományra. Látja, hogy a dátum és az időpontok külön cellákban szerepelnek? Összekapcsolhatja őket a & szimbólummal, mint ahogyan az a C32:C33 cellák esetében látható, de ez nem tűnik helyesnek, ugye? Sajnos az Excel nem tudja, hogy Ön hogyan szeretné formázni a számokat, ezért a legegyszerűbb formátumot használja, amely ebben az esetben a dátumérték. Kifejezetten meg kell adni az Excelnek, hogy hogyan legyen formázva a képlet számot tartalmazó része, hogy az eredményül kapott szöveges karakterlánc a kívánt módon jelenjen meg. Ezt a SZÖVEG függvény és egy formátumkód megadásával teheti meg. | C9: Ferenc | D9: Horváth
A10: A C36 cellába írja be a következőt: =C28&" "&SZÖVEG(D28;"éééé.hh.nn."). A éééé.hh.nn. a Év.Hónap. Nap formátumnak (például 2017.09.25.) megfelelő egyesült államokbeli formátumkód. | C10: Izabella | D10: Gyenes
A11: A C37 cellába írja be a következőt: =C29&" "&SZÖVEG(D29;"ÓÓ:PP"). Az ÓÓ:PP az Óra:Perc formátumnak (például 1:30) megfelelő egyesült államokbeli formátumkód.
A12: VESSEN ERRE EGY PILLANTÁST A képletek, különösen a nagy méretűek, néha nehezen olvashatók, szóközökkel azonban feloszthatja őket az egyes részeikre, a következőképpen: =C28 & " " & SZÖVEG(D28;"éééé.hh.nn.")
A13: ÉRDEMES TUDNI Ha nem tudja, hogy milyen formátumkódot kell használnia, a Ctrl+1 billentyűparancsot lenyomva, majd a Szám lehetőséget választva bármelyik cellát formázhatja. Ezután válassza az Egyéni beállítást. A megjelenő formátumkódot visszamásolhatja a képletbe.
A14: További információ a weben
A15: Minden a SZÖVEG függvényről
A16: Szöveg és számok összefűzése
A17: Ingyenes online Excel-képzés
C27: Szöveg és számok használata
C28: Mai dátum: | D28: =TODAY() -> 2019-08-14
C29: Aktuális idő: | D29: =NOW() -> 43691.58122
C31: Szöveg és számok összekapcsolása
C32: =C28&" "&D28 -> Mai dátum: 43691
C33: =C29&" "&D29 -> Aktuális idő: 43691,5812196759
C35: Szöveg és számok formázása
C36: =C28 &" "& TEXT(D28,"éééé.hh.nn.") -> Mai dátum: 2019.08.14.
C37: =C29&" "&TEXT(D29,"ÓÓ:PP") -> Aktuális idő: 13:56

Sheet HA utasítások
A1: HA utasítások
A2: A HA utasítások lehetővé teszik a feltételek logikai összehasonlítását. A HA utasítások általában arról szólnak, hogy ha az egyik feltétel igaz, akkor történjen valami, ellenkező esetben pedig történjen valami más. A képletek szöveget, értékeket, de akár további számításokat is visszaadhatnak.
A3: A D9 cellába írja be a következőt: =HA(C9="Alma";IGAZ;HAMIS). A helyes válasz az IGAZ.
A4: Másolja a D9 cella tartalmát a D10 cellába. A válasz itt a HAMIS, hiszen a narancs nem alma.
A5: Próbálkozzon egy másik példával a D12 cellában lévő képletet alapul véve. Kezdésként a következő képletet használta: =HA(C12<100;"Kisebb mint 100";"Nagyobb vagy egyenlő mint 100"). Mi történik akkor, ha egy 100-nál nagyobb számot ír a C12 cellába?
A6: FONTOS INFORMÁCIÓ Az IGAZ és a HAMIS a többi szótól eltérően működik az Excel-képletekben abban az értelemben, hogy nem kell idézőjelek között szerepelniük, és hogy az Excel automatikusan nagybetűssé alakítja őket. A számoknak sem kell idézőjelek között szerepelnie. A normál szöveget (például Igen vagy Nem) idézőjelek közé kell tenni, a következőképpen: =HA(C9=“Apple“;„Igen“;„Nem“)
A7: Haladjon lefelé, ha kíváncsi a részletekre
A8: Következő | C8: HA utasítások
A9: HA utasítás egy másik függvénnyel | C9: Alma
A10: A HA utasítások további számítások végrehajtását is kényszeríthetik egy bizonyos feltétel teljesülése esetén. Most egy cella kiértékelésével azt fogjuk kideríteni, hogy szükség van-e áfa felszámítására, valamint annak kiszámítására, hogy a feltétel igaz-e. | C10: Narancs
A11: Az F33 cellába beírtuk a =HA(E33="Igen";F31*Áfa;0) képletet, amelyben az áfát névvel ellátott tartományokkal adtuk meg, 0,0825 értékkel. A képletünk szerint ha az E33 cella értéke Igen, akkor az F31 cellát meg kell szorozni az áfa értékével, ellenkező esetben az eredmény 0 lesz. Ha az E33 cellában az Igen értéket Nem értékre változtatja, láthatja, ahogyan a számítás is módosul.
A12: Ezután felvettünk egy HA utasítást a szállítás kiszámítására, ha ez szükséges. Az F35 cellában a következőt fogja látni: =HA(E35="Igen";SZUM(D28:D29)*1,25;0). Ez a következőt jelenti: „Ha az E35 cella értéke Igen, akkor a fenti táblázat Mennyiség oszlopának összegét meg kell szorozni 1,25-tel, ellenkező esetben az eredmény 0 lesz.” | C12: 50 | D12: =IF(C12<100,"Kisebb mint 100","Nagyobb vagy egyenlő mint 100") -> Kisebb mint 100
A13: Ezután módosítsa a képletben szereplő 1,25 értéket „Szállítás” értékre az F35 cellában. Ahogyan elkezd gépelni, az Excel automatikus javítási funkciója megkeresi Önnek ezt a nevet. Amikor ez megtörténik, nyomja le a Tab billentyűt a beírásához. Ez egy névvel ellátott tartományokkal, amelyet a Képletek > Név megadása elemet választva adtunk meg. Mostantól ha bármikor módosítania kell a szállítási költséget, azt csak egy helyen kell megtennie ahhoz, hogy a Szállítás nevet használhassa mindenhol a munkafüzetben.
A14: JÓ TUDNI Képlet létrehozásakor az Excel automatikusan színes szegélyekkel látja el a képletben hivatkozott esetleges tartományokat, a képletben pedig a megfelelő tartományok ugyanazt a színt kapják. Kipróbálhatja ezt úgy, hogy kijelöli az F33 cellát, és lenyomja az F2 billentyűt a képlet szerkesztéséhez.
A15: SZAKÉRTŐI TIPP A névvel ellátott tartományokkal egyetlen helyen definiálhatja a kifejezéseket vagy értékeket, majd újra felhasználhatja őket egy munkafüzeten belül. A munkafüzet összes, névvel ellátott tartományának megtekintéséhez válassza a Képletek > Névkezelő lehetőséget. Ide kattintva többet is megtudhat.
A16: Előző
A17: Következő
A18: További információ a weben
A19: Minden a HA függvényről
A20: Minden a HAELSŐIGAZ függvényről
A21: Speciális HA utasítások
A22: Ingyenes online Excel-képzés
C27: Tétel | D27: Mennyiség | E27: Költség | F27: Összesen
C28: Bigyó | D28: 2 | E28: 9.76 Ft | F28: ='HA utasítások'!$E$28:$E$29*'HA utasítások'!$D$28:$D$29 -> 19.52 Ft
C29: Izé | D29: 3 | E29: 3.42 Ft | F29: 10.26 Ft
D31: Részösszeg | E31: =SUM('HA utasítások'!$E$28:$E$29) -> 13.18 Ft | F31: =SUM('HA utasítások'!F28:F29) -> 29.78 Ft
D33: Áfa? | E33: Igen | F33: =IF(E33="Igen",F31*Áfa,0) -> 2.46 Ft
D35: Szállítás? | E35: Igen | F35: =IF(E35="Igen",SUM(D28:D29)*1.25,0) -> 6.25 Ft
D37: Összesen | F37: =SUM(F33,F31,F35) -> 38.48 Ft

Sheet FKERES
A1: FKERES
A2: Az FKERES az egyik leggyakrabban használt függvény az Excelben (és egyben a mi egyik kedvencünk is). Az FKERES függvénnyel rákereshet egy értékre az egyik bal oldali oszlopban, majd találat esetén az adatokat egy másik oszlopban láthatja a jobb oldalon. Az FKERES a következőt jelenti:
A3: =FKERES(A1;B:C;2;HAMIS)
A4: A keresett érték
A5: Ha megtalálja, hány oszlopnyival jobbra szeretne értéket megjeleníteni?
A6: A keresés helye
A7: Pontos vagy megközelítő egyezést szeretne?
A8: A D22 cellába írja be a következőt: =FKERES(C22;C17:D20;2;HAMIS). Az almák esetében a helyes válasz az 50. Az FKERES rákeresett az Almák értékre, megtalálta azt, majd egy oszloppal jobbra visszaadta a mennyiséget.
A9: Most próbálja ki Ön is a Húsárú szakaszban, a G22 cellában. A végén a képletnek így kell kinéznie: =FKERES(F22;F17:G20;2;HAMIS).
A10: KÍSÉRLET Próbálkozzon más elemek kijelölésével a legördülő listákban. Figyelje meg, ahogyan az eredménycellák azonnal frissülnek az új értékekkel.
A11: Haladjon lefelé, ha kíváncsi a részletekre
A12: Következő
A13: FKERES és #HIÁNYZIK
A14: Elkerülhetetlenül előállhat az a helyzet, hogy az FKERES nem találja a keresett értéket, és hibát (#HIÁNYZIK) ad vissza. Néha ennek az az oka, hogy a keresési érték egyszerűen nem létezik, de az is lehetséges, hogy a hivatkozáscellának még nincs értéke.
A15: Ha biztosan tudja, hogy a keresési érték létezik, de el szeretné rejteni a hibát, ha a keresési cella üres, egy HA utasítást kell használnia. Ebben az esetben a meglévő FKERES képletünket a következőképpen ágyazzuk a HA utasításba a D43 cellában: =HA(C43="";"";FKERES(C43;C37:D41;2;HAMIS)) Ez a következőt jelenti: ha a C43 cella semmivel ("") egyenlő, akkor semmit ne adjon vissza, ellenkező esetben pedig az FKERES eredményét adja vissza. Figyelje meg, hogy a képlet végén egy második záró zárójel is található. Ez zárja le a HA utasítást.
A16: Ha nem biztos abban, hogy létezik-e a keresési érték, de így is ki szeretné küszöbölni a #HIÁNYZIK hiba megjelenését, használhat egy HAHIBA nevű hibakezelő függvényt a G43 cellában: =HAHIBA(FKERES(F43;F37:G41;2;HAMIS);""). A HAHIBA függvény azt mondja, hogy ha az FKERES érvényes eredményt ad vissza, akkor az jelenjen meg, ellenkező esetben pedig semmi ("") ne jelenjen meg. Mi itt semmit ("") nem jelenítettünk meg, de ehelyett számokat (0,1, 2 stb.) vagy szöveget (például „A képlet helytelen”) is használhat. | C16: Gyümölcs | D16: Mennyiség | F16: Húsáru | G16: Mennyiség
A17: FONTOS RÉSZLET A HAHIBA olyan hibakezelő, amely minden hibaüzenetet elrejt, amelyet a képlet esetleg kiváltana. Ez problémákat okozhat akkor, ha az Excel értesítést jelenít meg arról, hogy a képletben egy szabályos, javítást igénylő hiba található. Általános szabályként elmondható, hogy a hibakezelők képletekben való használata mindaddig nem ajánlott, amíg teljes mértékben meg nem győződött azok megfelelő működéséről. | C17: Alma | D17: 50 | F17: Marha | G17: 50
A18: Előző | C18: Narancs | D18: 20 | F18: Csirke | G18: 30
A19: Következő | C19: Banán | D19: 60 | F19: Sertés | G19: 10
A20: További információ a weben | C20: Citrom | D20: 40 | F20: Hal | G20: 50
A21: Minden az FKERES függvényről
A22: Minden az INDEX/HOL.VAN függvényről | C22: Alma | F22: Sertés
A23: Minden a HAHIBA függvényről
A24: Kimutatás használata munkalapadatok elemzésére
A25: Ingyenes online Excel-képzés
C35: Ha a SZUM függvény a D42 cellában beszélni tudna, ezt mondaná: Adja össze a D38, D39, D40 és D41 cellák értékét.
C36: Tétel | D36: Mennyiség | F36: Tétel | G36: Mennyiség
C37: Kenyér | D37: 50 | F37: Kenyér | G37: 50
C38: Fánk | D38: 100 | F38: Fánk | G38: 100
C39: Sütemény | D39: 40 | F39: Sütemény | G39: 40
C40: Torta | D40: 50 | F40: Torta | G40: 50
C41: Pite | D41: 20 | F41: Pite | G41: 20
D43: =VLOOKUP(C43,C37:D41,2,FALSE) ->  | F43: Péksütemény | G43: =IFERROR(VLOOKUP(F43,F37:G41,2,FALSE),"") -> 

Sheet Feltételes függvények
A1: Feltételes függvények – SZUMHA
A2: A feltételes függvényekkel elvégezheti egy tartomány összegzését, átlagának kiszámítását, továbbá megállapíthatja az átlagát, illetve a minimális vagy a maximális értékét, egy adott feltétel vagy egy Ön által megadott kritérium alapján. Kiderítheti például, hogy a listában szereplő összes gyümölcs között hány alma található. Vagy azt, hogy a narancsok közül hány tartozik a Florida típusba. | C2: Gyümölcs | D2: Mennyiség | F2: Gyümölcs | G2: Típus | H2: Mennyiség | Z2: Gyümölcs | AB2: Alma | AD2: Narancs | AF2: Banán | AH2: Citrom
A3: A SZUMHA függvénnyel egy tartomány értékeit egy másik tartományban keresett, adott feltétel alapján összegezheti, megállapíthatja például, hogy mennyi az almák száma. Jelölje ki a D17 cellát, és írja be a következőt: =SZUMHA(C3:C14;C17;D3:D14). A SZUMHA szerkezete az alábbihoz hasonló: | C3: Alma | D3: 50 | F3: Alma | G3: Fuji | H3: 50 | Z3: Alma | AB3: Fuji | AD3: Florida | AF3: Cavendish | AH3: Rough
A4: =SZUMHA(C3:C14;C17;D3:D14) | C4: Narancs | D4: 20 | F4: Narancs | G4: Florida | H4: 20 | Z4: Narancs | AB4: Honeycrisp | AD4: Navel | AF4: Lady Finger | AH4: Eureka
A5: Az ellenőrizni kívánt tartomány | C5: Banán | D5: 60 | F5: Banán | G5: Cavendish | H5: 60 | Z5: Banán
A6: A keresni kívánt érték (szöveg vagy szám) | C6: Citrom | D6: 40 | F6: Citrom | G6: Rough | H6: 40 | Z6: Citrom
A7: Az egyes talált egyezésekhez összegzendő tartomány | C7: Alma | D7: 50 | F7: Alma | G7: Honeycrisp | H7: 50
A8: A SZUMHATÖBB megegyezik a SZUMHA függvénnyel, azzal a különbséggel, hogy előbbi több feltétel használatát is lehetővé teszi. Ebben a példában tehát nemcsak a Gyümölcs, hanem a Gyümölcs és a Típus oszlopban is kereshet. Jelölje ki a H17 cellát, és írja be a következőt: =SZUMHATÖBB(H3:H14;F3:F14;F17;G3:G14;G17). A SZUMHATÖBB szerkezete az alábbihoz hasonló: | C8: Narancs | D8: 20 | F8: Narancs | G8: Navel | H8: 20
A9: =SZUMHATÖBB(H3:H14;F3:F14;F17;G3:G14;G17) | C9: Banán | D9: 60 | F9: Banán | G9: Lady Finger | H9: 60
A10: Az összegezni kívánt tartomány | C10: Citrom | D10: 40 | F10: Citrom | G10: Eureka | H10: 40
A11: Ez az első tartomány az egyezések kereséséhez | C11: Alma | D11: 50 | F11: Alma | G11: Honeycrisp | H11: 50
A12: Ez az első egyezés feltétele | C12: Narancs | D12: 20 | F12: Narancs | G12: Navel | H12: 20
A13: Ez a második tartomány az egyezések kereséséhez | C13: Banán | D13: 60 | F13: Banán | G13: Cavendish | H13: 60
A14: Ez a második egyezés feltétele | C14: Citrom | D14: 40 | F14: Citrom | G14: Eureka | H14: 40
A15: SZAKÉRTŐI TIPP A Gyümölcs és a Típus cellák mindegyikéhez tartozik egy legördülő lista, amelyből kiválaszthatja a különböző gyümölcsöket. Próbálja ki, és figyelje meg, ahogyan a képletek automatikusan frissülnek.
A16: Haladjon lefelé, ha kíváncsi a részletekre | C16: Gyümölcs | D16: SZUMHA | F16: Gyümölcs | G16: Típus | H16: SZUMHATÖBB
A17: Következő lépés | C17: Alma | F17: Narancs | G17: Florida
A18: Feltételes függvények – DARABTELI
A19: A DARABHA és a DARABHATÖBB függvénnyel megszámlálhatja az egy tartományban szereplő értékeket egy Ön által megadott feltétel alapján. Ezek kissé különböznek a többi HA és HATÖBB függvénytől, abban az értelemben, hogy előbbiek csak egy feltételtartományt és egy feltételt tartalmaznak. Nem úgy működnek, hogy egyetlen tartományt kiértékelnek, majd egy másik tartományt ellenőriznek az összegzéshez.
A20: Jelölje ki a D64 cellát, és írja be a következőt: =DARABTELI(C50:C61;C64). A DARABTELI szerkezete az alábbihoz hasonló:
A21: =DARABTELI(C50:C61;C64)
A22: Az ellenőrizni kívánt tartomány
A23: A keresni kívánt érték (szöveg vagy szám)
A24: A DARABHATÖBB megegyezik a SZUMHA függvénnyel, azzal a különbséggel, hogy előbbi több feltétel használatát is lehetővé teszi. Ebben a példában tehát nemcsak a Gyümölcs, hanem a Gyümölcs és a Típus oszlopban is kereshet. Jelölje ki a H64 cellát, és írja be a következőt: =DARABHATÖBB(F50:F61;F64;G50:G61;G64). A DARABHATÖBB szerkezete az alábbihoz hasonló:
A25: =DARABHATÖBB(F50:F61;F64;G50:G61;G64)
A26: Ez az első megszámlálandó tartomány
A27: Ez az első egyezés feltétele
A28: Ez a második megszámlálandó tartomány
A29: Ez a második egyezés feltétele
A30: Haladjon lefelé, ha kíváncsi a részletekre
A31: Következő
A32: További feltételes függvények
A33: A SZUMHA, a SZUMHATÖBB, a DARABTELI és a DARABHATÖBB függvénnyel már megismerkedett. Most más függvényeket is kipróbálhat, mint amilyen például az ÁTLAGHA és az ÁTLAGHATÖBB, illetve a MAXHA és a MINHA. E függvények mindegyikének azonos a felépítése, így ha már egy képletet megírt, egyszerűen csak le kell cserélnie a függvény nevét a kívánt másik függvény nevére. Minden olyan függvényt megírtunk, amelyre szüksége lehet az E106 cellához. Ezeket a vágólapra másolhatja, majd beillesztheti a cellába, de gyakorlásként akár saját maga is megpróbálkozhat a beírásukkal. SZUMHA =SZUMHA(C92:C103;C106;E92:E103) SZUMHATÖBB =SZUMHATÖBB(E92:E103;C92:C103;C106;D92:D103;D106) ÁTLAGHA =ÁTLAGHA(C92:C103;C106;E92:E103) ÁTLAGHATÖBB =ÁTLAGHATÖBB(E92:E103;C92:C103;C106;D92:D103;D106) DARABTELI =DARABHA(C92:C103;C106) DARABHATÖBB =DARABHATÖBB(C92:C103;C106;D92:D103;D106) MAXHA =MAXHA(E92:E103;C92:C103;C106;D92:D103;D106) MINHA =MINHA(E92:E103;C92:C103;C106;D92:D103;D106)
A34: Haladjon lefelé, ha kíváncsi a részletekre
A35: Következő
A36: SZUMHA egy értékargumentummal
A37: Íme egy példa egy olyan SZUMHA függvényre, amely az összes olyan értéket hivatott megkeresni, amely nagyobb (>) egy adott összegnél:
A38: =SUMIF(D118:D122,">=50") -> 200
A39: Összegezzen értékeket ezen kritérium alapján:
A40: ...Ezekben a cellákban keressen...
A41: … és ha az érték nagyobb, mint 50, foglalja bele a számításba.
A42: MEGJEGYZÉS: Ha azon kapná magát, hogy túl sok feltételes képletet alkalmaz, fontolja meg egy kimutatás használatát. További információért olvassa el ezt a kimutatásokkal foglalkozó cikket.
A43: További információ a weben
A44: Minden a SZUMHA függvényről
A45: Minden a SZUMHATÖBB függvényről
A46: Minden a DARABHA függvényről
A47: Minden a DARABHATÖBB függvényről
A48: Minden az ÁTLAGHA függvényről
A49: Minden az ÁTLAGHATÖBB függvényről | C49: Gyümölcs | D49: Mennyiség | F49: Gyümölcs | G49: Típus | H49: Mennyiség
A50: Minden a MINHA függvényről | C50: Alma | D50: 50 | F50: Alma | G50: Fuji | H50: 50
A51: Minden a MAXHA függvényről | C51: Narancs | D51: 20 | F51: Narancs | G51: Florida | H51: 20
A52: Legördülő lista létrehozása | C52: Banán | D52: 60 | F52: Banán | G52: Cavendish | H52: 60
A53: Ingyenes online Excel-képzés | C53: Citrom | D53: 40 | F53: Citrom | G53: Rough | H53: 40
A54: Vissza a lap tetejére | C54: Alma | D54: 50 | F54: Alma | G54: Honeycrisp | H54: 50
A55: Következő | C55: Narancs | D55: 20 | F55: Narancs | G55: Navel | H55: 20
C56: Banán | D56: 60 | F56: Banán | G56: Lady Finger | H56: 60
C57: Citrom | D57: 40 | F57: Citrom | G57: Eureka | H57: 40
C58: Alma | D58: 50 | F58: Alma | G58: Honeycrisp | H58: 50
C59: Narancs | D59: 20 | F59: Narancs | G59: Navel | H59: 20
C60: Banán | D60: 60 | F60: Banán | G60: Cavendish | H60: 60
C61: Citrom | D61: 40 | F61: Citrom | G61: Eureka | H61: 40
C63: Gyümölcs | D63: DARABTELI | F63: Gyümölcs | G63: Típus | H63: DARABHATÖBB
C64: Alma | D64: =COUNTIF(C50:C61,C64) -> 3 | F64: Narancs | G64: Florida | H64: =COUNTIFS(F50:F61,F64,G50:G61,G64) -> 1
C91: Gyümölcs | D91: Típus | E91: Mennyiség
C92: Alma | D92: Fuji | E92: 50
C93: Narancs | D93: Florida | E93: 20
C94: Banán | D94: Cavendish | E94: 60
C95: Citrom | D95: Rough | E95: 40
C96: Alma | D96: Honeycrisp | E96: 50
C97: Narancs | D97: Navel | E97: 20
C98: Banán | D98: Lady Finger | E98: 60
C99: Citrom | D99: Eureka | E99: 40
C100: Alma | D100: Honeycrisp | E100: 50
C101: Narancs | D101: Navel | E101: 20
C102: Banán | D102: Cavendish | E102: 60
C103: Citrom | D103: Eureka | E103: 40
C105: Gyümölcs | D105: Típus | E105: Kipróbálás
C106: Citrom | D106: Eureka | E106: =AVERAGEIFS(E92:E103,C92:C103,C106,D92:D103,D106) -> 40
C117: Tétel | D117: Mennyiség
C118: Kenyér | D118: 50
C119: Fánk | D119: 100
C120: Sütemény | D120: 40
C121: Torta | D121: 50
C122: Pite | D122: 20
D123: =SUMIF(D118:D122,">=50") -> 200

Sheet Függvényvarázsló
A1: A Függvényvarázsló használata
A2: Ha tudja a kívánt függvény nevét, de nem biztos abban, hogy hogyan kell azt használni, segítségül hívhatja a Függvényvarázslót.
A3: Jelölje ki a D10 cellát, majd válassza a Képletek > Függvény beszúrása lehetőséget, írja be az FKERES függvényt a Függvény keresése mezőbe, majd kattintson a Keresés gombra. Amikor az FKERES függvény kiemelve látható, kattintson alul az OK gombra. Amikor kijelöl egy függvényt a listában, az Excel megjeleníti annak szintaxisát.
A4: Ezután írja be a függvény argumentumait a megfelelő mezőkbe. Miközben beírja őket, az Excel elvégzi a kiértékelésüket, és megjeleníti az eredményt, alul pedig a végleges eredményt. Miközben megadja az egyes szakaszokat, minden egyes argumentum feltétele megjelenik az űrlap alján lévő listában. Ha végzett, kattintson az OK gombra, és az Excel beírja Ön helyett a képletet. | C4: Gyümölcs | D4: Mennyiség
A5: VESSEN ERRE EGY PILLANTÁST A végén a képletnek így kell kinéznie: =FKERES(C10;C5:D8;2;HAMIS) | C5: Alma | D5: 50
A6: JÓ TUDNI A cella- és tartományhivatkozásokat beírhatja, vagy kiválaszthatja őket az egérrel. | C6: Narancs | D6: 20
A7: JÓ TUDNI Miközben megadja az egyes argumentumok szakaszát, az űrlap alsó részén, a képlet eredménye fölött megjelenik az argumentum leírása. | C7: Banán | D7: 60
A8: Előző | C8: Citrom | D8: 40
A9: Következő
A10: További információ a weben | C10: Alma | D10: =VLOOKUP(C10,C5:D8,2,FALSE) -> 50
A11: A képletek áttekintése az Excelben
A12: Az Excel függvényeinek kategória szerinti listája
A13: Az Excel függvényeinek betűrendes listája
A14: Ingyenes online Excel-képzés

Sheet Képlethibák
A1: Képlethibák kijavítása
A2: Valamikor Önnel is biztosan előfordul majd, hogy olyan képlettel találkozik, amelyben valamilyen hiba található. Az Excel ezt a következőképpen jelzi: #HibaNeve. A hibák hasznosak lehetnek, mivel rámutatnak arra, ha valami nem megfelelően működik, a kijavításuk azonban kihívást jelenthet. Szerencsére számos lehetőség áll rendelkezésre, amelyek segítenek megállapítani a hiba forrását, illetve kijavítani a hibát.
A3: Hibaellenőrzés – Válassza a Képletek > Hibaellenőrzés lehetőséget. Ezzel betöltődik egy párbeszédpanel, amely tájékoztatja Önt az adott hiba általános okáról. A D9 cellában az #HIÁNYZIK hiba oka, hogy nem található az „Alma” értékkel egyező érték. A hiba kijavításához használhat egy létező értéket, elrejtheti a hibát a HAHIBA függvénnyel, vagy figyelmen kívül hagyhatja, és az majd eltűnik akkor, amikor egy valóban létező értéket használ. | C3: Gyümölcs | D3: Összeg
A4: Ha a Súgó erről a hibáról hivatkozásra kattint, azzal megnyitja az adott hibaüzenettel foglalkozó súgótémakört. A Számolási lépések megjelenítése elemre kattintva megjelenítheti a Képletkiértékelő párbeszédpanelt. | C4: Alma | D4: 50
A5: Minden alkalommal, amikor a Kiértékelés gombra kattint, az Excel végiglépked a képleten szakaszonként. Nem feltétlenül fogja tájékoztatni a hiba okáról, de arról igen, hogy hol fordul elő a hiba. Innen a megfelelő súgótémakörhöz jutva kikövetkeztetheti, hogy mi a probléma a képlettel. | C5: Narancs | D5: 20
A6: KÍSÉRLET Mi a hiba? Tipp: A SZUM függvénnyel megkíséreljük összegezni az összes elemet. | C6: Banán | D6: 60
A7: JÓ TUDNI A Beállítások elemre kattintva megadhatja azokat a szabályokat, amelyek az Excelben hibák megjelenésekor vagy mellőzésekor lépnek érvénybe. | C7: Citrom | D7: 40
A8: Előző
A9: Következő | C9: Alma1 | D9: =VLOOKUP(C9,C3:D7,2,FALSE) -> 
A10: További információ a weben
A11: A képlethibák feltárása
A12: Hibás képletek kiküszöbölése
A13: Beágyazott képlet kiértékelése lépésenként
A14: Ingyenes online Excel-képzés
C30: Gyümölcs | D30: Mennyiség
C31: Alma | D31: 50
C32: Narancs | D32: 20
C33: Banán | D33: 60
C34: Citrom | D34: 40
C36: Összesen | D36: =sume(D31:D34) -> 

Sheet További információ
A1: További kérdései vannak az Excelről?
A2: Nyomja le az ALT+M billentyűkombinációt, és írja be, mire kíváncsi.
A3: Folytassa. Az Excel számos lehetőséget rejt:
A4: Közösség: Kérdezzen, és ismerkedjen más Excel-rajongókkal.
A5: Mi új még? Az Office 365-előfizetők folyamatosan frissítésekhez és új funkciókhoz jutnak.
